bitfinex/quotes_ETHUSD_20250623
["timestamp","ask_amount","ask_price","bid_price","bid_amount"]
[1750650419598,0.41628071,2237.9,2237.8,3.2686]
[1750650419794,0.41628071,2237.9,2237.8,13.2686]
[1750650420008,0.41632255,2237.9,2237.8,13.2686]
[1750650420205,2.40132255,2237.9,2237.8,1.343818]
[1750650420628,2.40132255,2237.9,2237.7,3.21]
[1750650420829,7.73232255,2237.8,2237.7,4.553908]
[1750650421705,0.41622275,2237.8,2237.7,4.612508]
[1750650422020,7.319,2237.8,2237.7,5.07822741]
[1750650422199,7.73529053,2237.8,2237.7,4.612508]
[1750650423701,7.73521854,2237.8,2237.7,4.612508]
[1750650424337,7.319,2237.8,2237.7,4.612508]
[1750650424542,7.73524022,2237.8,2237.7,4.612508]
[1750650425524,7.73553738,2237.8,2237.7,4.612508]
[1750650426545,7.73554161,2237.8,2237.7,4.612508]
[1750650427243,7.319,2237.8,2237.7,4.612508]
[1750650427428,7.73553006,2237.8,2237.7,4.612508]
[1750650428057,0.41653006,2237.8,2237.7,5.975108]
[1750650428345,0.41653006,2237.8,2237.7,7.33451]
[1750650428644,0.41704256,2237.8,2237.7,7.27591]
[1750650428840,0.41704256,2237.8,2237.7,7.33451]
[1750650429043,0.41704256,2237.8,2237.7,7.28982981]
[1750650429844,0.41704256,2237.8,2237.7,17.28982981]
[1750650430147,1.994,2238.1,2238.0,0.6086]
[1750650430342,2.41135821,2238.1,2238.0,0.6086]
[1750650431017,2.41135821,2238.1,2238.0,1.952153]
[1750650432909,1.994,2238.1,2238.0,1.952153]
[1750650433254,2.4117267,2238.1,2238.0,1.952153]
[1750650433460,2.4117286,2238.1,2238.0,5.162153]
[1750650435251,2.41158107,2238.1,2238.0,5.162153]
[1750650435854,1.994,2238.1,2238.0,5.162153]
[1750650436062,2.41156769,2238.1,2238.0,5.162153]
[1750650436765,2.41156841,2238.1,2238.0,5.162153]
[1750650437465,2.41156841,2238.1,2238.0,5.164553]
[1750650437825,2.41156841,2238.1,2238.0,6.6810083]
[1750650438234,2.41156841,2238.1,2238.0,5.164553]
[1750650438880,2.41150772,2238.1,2238.0,5.164553]
[1750650440536,2.41150772,2238.1,2238.0,4.553553]
[1750650440948,7.72150772,2238.1,2238.0,4.553553]
[1750650441535,7.304,2238.1,2238.0,4.553553]
[1750650441735,7.72140115,2238.1,2238.0,4.553553]
[1750650443338,7.304,2238.1,2238.0,4.553553]
[1750650443538,7.721358,2238.1,2238.0,4.553553]
[1750650443769,8.75777879,2238.1,2238.0,3.21]
[1750650444449,8.3404358,2238.1,2238.0,3.21]
[1750650444670,8.75772338,2238.1,2238.0,3.21]
[1750650444870,8.75773495,2238.1,2238.0,3.21]
[1750650445370,8.75773495,2238.1,2237.9,3.21]
[1750650445670,1.29307265,2238.0,2237.9,3.21]
[1750650446468,1.29307265,2238.0,2237.8,1.343812]
[1750650446668,0.41729915,2237.9,2237.7,3.21]
[1750650446837,0.41729915,2237.8,2237.7,3.21]
[1750650447040,0.41729915,2237.8,2237.7,4.553866]
[1750650447240,0.8757735,2238.0,2237.7,4.553866]
[1750650447452,0.41735645,2237.9,2237.7,4.553866]
[1750650447659,0.8757735,2238.0,2237.7,4.553866]
[1750650447660,0.41735645,2237.8,2237.7,4.553866]
[1750650448051,0.41738715,2237.8,2237.7,4.553866]
[1750650448451,0.41738715,2237.8,2237.7,4.614866]
[1750650448855,0.41738715,2237.8,2237.7,5.08082105]
[1750650449056,7.72237757,2237.8,2237.7,5.12550246]
[1750650449257,7.72137757,2237.8,2237.7,5.12550246]
[1750650449539,7.72137757,2237.8,2237.7,4.614866]
[1750650450164,7.72134481,2237.8,2237.7,4.614866]
[1750650451568,0.41743412,2238.0,2237.9,10.88742548]
[1750650451766,0.41743412,2238.0,2237.9,10.94842548]
[1750650452970,7.304,2238.2,2237.9,10.88742548]
[1750650453196,0.41749724,2238.1,2238.0,0.611]
[1750650453395,0.41749724,2238.1,2238.0,3.821]
[1750650453697,0.41749724,2238.1,2238.0,4.43380092]
[1750650454067,10.744,2238.7,2238.0,15.24730092]
[1750650454273,7.72049839,2238.6,2238.4,0.55]
[1750650454466,0.41749839,2238.5,2238.4,0.611]
[1750650454882,0.41749839,2238.5,2238.4,3.821]
[1750650455100,0.41749839,2238.5,2238.4,5.164312]
[1750650455501,0.41752825,2238.5,2238.4,5.164312]
[1750650457302,0.41746661,2238.5,2238.4,5.103312]
[1750650457479,7.71846661,2238.5,2238.4,5.7559932]
[1750650458701,7.301,2238.5,2238.4,5.7559932]
[1750650458881,7.71847073,2238.5,2238.4,5.7559932]
[1750650459198,7.71849013,2238.5,2238.4,5.7559932]
[1750650459702,7.71848683,2238.5,2238.4,5.7559932]
[1750650459892,7.71848413,2238.5,2238.4,5.7559932]
[1750650460070,7.71848183,2238.5,2238.4,5.7559932]
[1750650461701,7.71842496,2238.5,2238.4,5.7559932]
[1750650462192,7.71842724,2238.5,2238.4,5.7559932]
[1750650463313,7.71843624,2238.5,2238.4,5.7559932]
[1750650463615,7.71843902,2238.5,2238.4,5.7559932]
[1750650464336,7.71843902,2238.5,2238.4,5.164312]
[1750650464621,7.71850597,2238.5,2238.4,5.164312]
[1750650466595,0.0575,2239.4,2238.4,12.27540715]
[1750650466905,9.68457971,2239.3,2238.9,0.0573]
[1750650467103,9.68457971,2239.3,2239.0,3.21]
[1750650467104,0.41757971,2239.2,2239.0,3.21]
[1750650467283,0.41757971,2239.1,2239.0,3.21]
[1750650467479,0.4175485,2239.1,2239.0,4.553072]
[1750650467697,7.7085485,2239.1,2239.0,4.610372]
[1750650468319,7.70855033,2239.1,2239.0,4.610372]
[1750650469804,7.70809195,2239.1,2239.0,4.610372]
[1750650470005,7.288,2239.1,2239.0,5.160372]
[1750650472326,7.288,2239.1,2239.0,4.610372]
[1750650473332,10.0,2239.4,2239.0,5.14089498]
[1750650473540,9.67656938,2239.3,2239.1,0.0573]
[1750650473832,10.0,2239.4,2239.2,3.2673]
[1750650474137,9.259,2239.3,2239.2,0.0573]
[1750650474632,9.259,2239.3,2239.2,3.2673]
[1750650474806,10.0,2239.4,2239.2,3.2673]
[1750650475011,1.976,2239.6,2239.4,0.0573]
[1750650475197,1.976,2239.6,2239.5,3.2673]
[1750650475401,9.259,2239.6,2239.5,3.2673]
[1750650475636,1.976,2239.6,2239.5,0.0573]
[1750650475897,9.259,2239.6,2239.5,0.0573]
[1750650476132,9.259,2239.6,2239.5,3.2673]
[1750650476307,7.282,2239.6,2239.5,0.6073]
[1750650477606,7.281,2239.6,2239.5,0.6073]
[1750650478112,7.281,2239.6,2239.5,1.949909]
[1750650479132,0.0575,2240.1,2239.5,1.949909]
[1750650479336,9.66910722,2240.0,2239.5,1.949909]
[1750650479601,0.41610909,2239.9,2239.6,0.0573]
[1750650479823,7.278,2239.8,2239.6,0.0573]
[1750650480224,1.975,2240.0,2239.5,1.892609]
[1750650480435,10.0585,2240.2,2239.7,0.821]
[1750650480436,9.253,2239.9,2239.7,0.821]
[1750650480639,9.253,2239.9,2239.8,0.0573]
[1750650481433,9.253,2239.9,2239.8,0.10194303]
[1750650481842,0.0585,2240.2,2239.8,3.25464303]
[1750650482047,9.226,2240.1,2240.0,0.0573]
[1750650482209,9.226,2240.1,2240.0,3.2673]
[1750650483204,9.226,2240.1,2240.0,3.21]
[1750650483723,9.2835,2240.1,2240.0,3.21]
[1750650486636,9.2835,2240.1,2239.7,3.21]
[1750650487337,9.2835,2240.1,2239.7,3.2673]
[1750650487643,9.2835,2240.1,2239.7,4.552598]
[1750650487938,9.226,2240.1,2239.7,4.552598]
[1750650488168,0.0575,2239.9,2239.7,1.342598]
[1750650488312,7.273,2239.8,2239.6,3.21]
[1750650488932,0.0575,2239.7,2239.6,3.21]
[1750650489526,7.273,2239.8,2239.6,3.21]
[1750650489733,7.3305,2239.8,2239.6,3.21]
[1750650491153,7.273,2239.8,2239.6,3.21]
[1750650492563,7.273,2239.8,2239.4,3.2673]
[1750650492742,7.273,2239.8,2239.5,3.2664]
[1750650493144,9.218,2239.7,2239.5,3.2664]
[1750650493362,9.218,2239.7,2239.5,3.21]
[1750650493568,9.218,2239.7,2239.5,3.2664]
[1750650493764,9.218,2239.7,2239.6,0.0564]
[1750650494070,7.27,2239.7,2239.6,0.8877]
[1750650494446,7.77,2239.7,2239.6,0.8877]
[1750650495247,0.5,2239.7,2239.6,1.4377]
[1750650495702,7.27,2239.7,2239.6,1.4377]
[1750650495974,7.27,2239.7,2239.6,1.94856219]
[1750650497888,7.27,2239.8,2239.7,0.0564]
[1750650498462,7.27,2239.8,2239.7,3.2664]
[1750650499196,7.27,2239.8,2239.7,4.608949]
[1750650500288,7.27,2239.8,2239.7,4.552549]
[1750650500451,7.27,2239.8,2239.7,5.29951231]
[1750650500651,0.0585,2240.2,2239.7,5.29951231]
[1750650500854,7.68468326,2240.1,2239.8,0.0564]
[1750650501069,0.41768156,2240.0,2239.7,5.24311231]
[1750650501296,7.267,2240.1,2239.7,5.24311231]
[1750650501454,0.4176796,2240.0,2239.8,0.0564]
[1750650501652,0.4176796,2239.9,2239.8,0.0564]
[1750650501857,7.267,2240.1,2239.8,1.31912369]
[1750650502061,0.41763337,2240.0,2239.9,0.0564]
[1750650502293,0.41763337,2240.0,2239.9,3.2664]
[1750650502490,0.41789917,2240.0,2239.9,4.0732]
[1750650502680,0.41789917,2240.0,2239.9,6.07284615]
[1750650502861,7.265,2240.1,2239.9,6.01644615]
[1750650503054,7.265,2240.1,2240.0,0.0564]
[1750650503255,7.68287743,2240.1,2240.0,0.10103876]
[1750650503490,0.41787743,2240.1,2240.0,1.32959537]
[1750650503686,7.68287743,2240.1,2240.0,1.28495661]
[1750650503893,0.41787743,2240.1,2240.0,1.28495661]
[1750650504053,7.265,2240.1,2240.0,1.3295926]
[1750650504263,0.0585,2240.2,2240.0,1.3295926]
[1750650504264,7.3225,2240.2,2240.1,0.0564]
[1750650504473,7.74042013,2240.2,2240.1,0.73154028]
[1750650504671,7.74042013,2240.2,2240.1,0.0564]
[1750650504972,7.3225,2240.2,2240.1,0.8677]
[1750650505196,7.7404198,2240.2,2240.1,0.8677]
[1750650505398,7.74042281,2240.2,2240.1,0.8677]
[1750650505698,7.3225,2240.2,2240.1,1.32440368]
[1750650505898,7.3225,2240.2,2240.1,1.97780866]
[1750650506198,7.3225,2240.2,2240.1,2.52780866]
[1750650506396,0.0585,2240.2,2240.1,2.52780866]
[1750650507494,0.0585,2240.2,2240.1,5.73780866]
[1750650508613,0.0585,2240.2,2240.1,7.08009366]
[1750650509700,0.0585,2240.2,2240.1,5.66239366]
[1750650510036,0.0585,2240.2,2240.1,3.21]
[1750650510037,0.53507477,2240.2,2240.1,3.21]
[1750650510206,0.47607477,2240.2,2240.1,3.21]
[1750650511146,0.47615682,2240.2,2240.1,3.21]
[1750650511713,0.4761067,2240.2,2240.1,3.21]
[1750650512029,0.47610668,2240.2,2240.1,3.21]
[1750650512430,0.47614839,2240.2,2240.1,3.21]
[1750650512834,0.47614314,2240.2,2240.1,3.21]
[1750650513132,0.47613718,2240.2,2240.1,3.21]
[1750650513332,0.47613715,2240.2,2240.1,3.21]
[1750650514127,0.47611819,2240.2,2240.1,3.21]
[1750650514705,7.73311819,2240.2,2240.1,3.2664]
[1750650514904,7.73310183,2240.2,2240.1,3.2664]
[1750650515132,0.47610851,2240.2,2240.1,3.2664]
[1750650515299,7.3145,2240.2,2240.1,4.54054916]
[1750650518007,0.0585,2240.2,2240.1,4.54054916]
[1750650518208,7.3135,2240.2,2240.1,4.54054916]
[1750650518460,0.0585,2240.2,2240.1,12.21797464]
[1750650518620,0.0585,2240.2,2240.1,22.21797464]
[1750650520942,10.732,2241.1,2240.7,0.0564]
[1750650521104,9.60133325,2241.0,2240.8,3.21]
[1750650521304,0.41733325,2240.9,2240.8,3.64686214]
[1750650521847,7.255,2241.3,2241.0,0.0564]
[1750650522142,0.41741751,2241.2,2241.0,0.0564]
[1750650522346,7.255,2241.3,2241.0,0.0564]
[1750650522506,0.41696206,2241.2,2241.1,3.21]
[1750650523105,0.4169672,2241.2,2241.1,3.21]
[1750650524352,7.253,2241.3,2241.1,3.21]
[1750650525944,0.47563078,2241.2,2241.1,3.21]
[1750650526268,15.30452548,2241.3,2240.7,1.341973]
[1750650526269,0.059,2241.1,2240.7,1.341973]
[1750650526565,0.059,2240.8,2240.7,1.341973]
[1750650526872,0.059,2240.7,2240.6,3.21]
[1750650527053,9.183,2240.7,2240.6,3.21]
[1750650529149,10.58308128,2240.7,2240.6,3.21]
[1750650529349,10.58308128,2240.7,2240.2,3.21]
[1750650529350,10.52408128,2240.7,2240.2,3.21]
[1750650529558,0.059,2240.6,2240.3,3.21]
[1750650530255,0.47608567,2240.5,2240.3,3.21]
[1750650530556,0.059,2240.5,2240.3,3.21]
[1750650533342,0.41721276,2240.4,2240.3,3.21]
[1750650533545,0.41721294,2240.4,2240.3,3.21]
[1750650533979,0.41721294,2240.4,2240.1,3.21]
[1750650534180,0.059,2240.5,2240.1,3.21]
[1750650534479,0.41721545,2240.4,2240.1,3.21]
[1750650534683,0.059,2240.5,2240.1,3.21]
[1750650534870,0.41721674,2240.4,2240.1,3.21]
[1750650535050,0.059,2240.5,2240.1,3.21]
[1750650535246,0.41721695,2240.4,2240.1,3.21]
[1750650535449,0.059,2240.5,2240.1,3.21]
[1750650535648,0.41721726,2240.4,2240.1,3.21]
[1750650535889,0.059,2240.5,2240.1,3.21]
[1750650536080,0.41720672,2240.4,2240.1,3.21]
[1750650536278,0.059,2240.5,2240.1,3.21]
[1750650536484,10.1072,2240.7,2240.2,0.0607]
[1750650536779,10.1662,2240.7,2240.2,0.0607]
[1750650538586,0.059,2240.6,2240.2,0.0607]
[1750650539986,0.059,2240.6,2240.3,3.21]
[1750650541485,0.41740713,2240.5,2240.3,3.21]
[1750650541685,0.41740713,2240.4,2240.3,3.21]
[1750650541989,0.41740778,2240.4,2240.3,3.21]
[1750650544273,0.41749877,2240.4,2240.3,3.21]
[1750650544467,0.41749931,2240.4,2240.3,3.21]
[1750650545389,0.41749931,2240.4,2239.7,7.67742548]
[1750650545390,0.47649951,2240.4,2240.0,3.21]
[1750650545604,1.17789201,2240.3,2239.8,3.21]
[1750650545899,9.58449951,2240.2,2239.9,0.0607]
[1750650546109,0.41749951,2240.1,2239.8,4.552459]
[1750650546257,9.167,2240.2,2239.8,4.552459]
[1750650546457,0.41752251,2240.1,2239.8,4.552459]
[1750650546657,9.167,2240.2,2239.9,0.0607]
[1750650546906,0.41745921,2240.1,2239.8,4.552459]
[1750650547102,9.167,2240.2,2239.8,4.552459]
[1750650547287,0.41745946,2240.1,2239.8,4.552459]
[1750650547493,9.167,2240.2,2239.8,4.552459]
[1750650547661,0.41745944,2240.1,2239.9,0.0607]
[1750650547859,9.167,2240.2,2239.9,0.0607]
[1750650548162,0.4174184,2240.1,2239.9,0.0607]
[1750650548362,9.167,2240.2,2239.8,4.552459]
[1750650548674,0.41741857,2240.1,2239.9,0.0607]
[1750650548890,9.167,2240.2,2240.0,3.21]
[1750650549391,9.167,2240.2,2240.0,3.2707]
[1750650550896,11.0837,2240.2,2240.0,3.21]
[1750650551193,0.41730519,2240.1,2240.0,3.21]
[1750650551397,9.58530519,2240.1,2240.0,3.21]
[1750650553529,9.58543185,2240.1,2240.0,3.21]
[1750650553726,0.41743185,2240.1,2240.0,3.21]
[1750650554029,9.58536809,2240.1,2240.0,3.21]
[1750650554437,0.41736809,2240.1,2240.0,3.21]
[1750650554649,9.58536809,2240.1,2240.0,3.21]
[1750650555942,9.58558982,2240.1,2240.0,3.21]
[1750650556730,9.58558982,2240.1,2240.0,3.2689]
[1750650556931,9.58558982,2240.1,2240.0,3.67583]
[1750650557419,9.58558982,2240.1,2240.0,3.2689]
[1750650557620,9.58599631,2240.1,2240.0,3.2689]
[1750650558243,0.41799631,2240.1,2240.0,3.2689]
[1750650558616,7.66713243,2240.1,2240.0,3.2689]
[1750650559609,0.41810338,2240.1,2240.0,3.2689]
[1750650559808,7.66710338,2240.1,2240.0,3.2689]
[1750650560397,7.66710338,2240.1,2240.0,3.21]
[1750650560816,7.66705093,2240.1,2240.0,3.21]
[1750650561421,7.6670385,2240.1,2240.0,3.21]
[1750650562325,7.6670385,2240.1,2240.0,3.2689]
[1750650562518,7.66701268,2240.1,2240.0,3.2689]
[1750650563630,7.66699346,2240.1,2240.0,3.2689]
[1750650563819,7.66695924,2240.1,2240.0,3.2689]
[1750650564334,0.41795658,2240.1,2240.0,13.68029402]
[1750650564517,7.249,2240.1,2240.0,14.23029402]
[1750650565322,7.249,2240.1,2240.0,15.03269402]
[1750650565635,7.249,2240.1,2240.0,14.97379402]
[1750650565935,7.249,2240.1,2240.0,15.03269402]
[1750650566800,0.058,2240.9,2240.2,0.0589]
[1750650567019,2.33697516,2240.8,2240.4,0.0589]
[1750650567223,0.41797516,2240.7,2240.4,0.0589]
[1750650567443,0.41797516,2240.6,2240.4,0.0589]
[1750650567643,0.41797516,2240.5,2240.4,0.0589]
[1750650568044,9.58597516,2240.5,2240.4,0.0589]
[1750650568232,9.58597516,2240.5,2240.3,3.21]
[1750650568538,0.41797516,2240.4,2240.3,3.2689]
[1750650570014,0.41785186,2240.4,2240.3,3.2689]
[1750650570209,9.168,2240.5,2240.3,3.2689]
[1750650570518,0.41785347,2240.4,2240.3,3.2689]
[1750650571817,0.41785347,2240.4,2240.3,4.611119]
[1750650572032,7.66585347,2240.4,2240.3,5.0722309]
[1750650573026,7.66571703,2240.4,2240.3,5.0722309]
[1750650573348,7.6657185,2240.4,2240.3,5.0722309]
[1750650573847,7.248,2240.4,2240.3,5.0722309]
[1750650574247,1.918,2240.6,2240.4,0.0589]
[1750650574452,7.6656214,2240.5,2240.4,0.10353046]
[1750650574753,7.6656214,2240.5,2240.4,0.0589]
[1750650575164,7.66561965,2240.5,2240.4,0.0589]
[1750650576241,7.66554646,2240.5,2240.4,0.0589]
[1750650577166,7.66554646,2240.5,2240.3,5.370119]
[1750650577372,7.248,2240.5,2240.3,5.370119]
[1750650577528,0.058,2240.8,2240.3,5.370119]
[1750650577727,7.248,2240.4,2240.3,5.370119]
[1750650578431,7.66533715,2240.4,2240.3,4.552219]
[1750650578632,7.6653066,2240.4,2240.3,4.552219]
[1750650578929,7.248,2240.4,2240.3,4.552219]
[1750650579135,7.66518999,2240.4,2240.3,4.552219]
[1750650579468,16.52167702,2240.4,2240.3,1.342219]
[1750650579627,16.52167702,2240.4,2239.8,4.0249]
[1750650579829,0.47518999,2240.3,2239.9,3.21]
[1750650580166,0.058,2240.3,2239.9,3.21]
[1750650580556,0.058,2240.3,2239.9,3.2689]
[1750650582508,14.37542548,2240.4,2239.9,3.21]
[1750650582509,7.54440284,2240.2,2239.9,3.21]
[1750650582805,3.08940886,2240.1,2239.9,3.21]
[1750650583010,7.248,2240.0,2239.9,3.21]
[1750650583668,7.66502682,2240.0,2239.9,3.21]
[1750650584397,7.66502682,2240.0,2239.8,4.552639]
[1750650584601,7.248,2240.0,2239.8,4.552639]
[1750650585391,7.248,2240.0,2239.8,1.342639]
[1750650586096,7.248,2240.0,2239.6,3.21]
[1750650586329,7.248,2240.0,2239.6,3.2702]
[1750650586504,7.248,2240.0,2239.6,4.612882]
[1750650587331,7.248,2240.0,2239.6,5.04958157]
[1750650588433,0.5,2239.8,2239.6,5.04958157]
[1750650588636,0.5,2239.8,2239.7,3.21]
[1750650589751,0.5,2239.8,2239.7,4.552682]
[1750650589926,7.748,2239.8,2239.7,4.612882]
[1750650594549,7.748,2239.8,2239.7,4.552682]
[1750650594720,7.748,2239.8,2239.7,3.21]
[1750650596054,8.7205,2239.8,2239.7,3.21]
[1750650596254,8.7795,2239.8,2239.7,3.21]
[1750650596548,9.13667073,2239.8,2239.4,1.342874]
[1750650596744,0.41617073,2239.7,2239.4,1.342874]
[1750650597043,0.059,2239.7,2239.4,1.342874]
[1750650597223,11.84149255,2239.7,2239.4,1.342874]
[1750650597428,0.41591735,2239.6,2239.4,1.342874]
[1750650597639,11.84149255,2239.7,2239.4,1.342874]
[1750650597825,0.41591444,2239.6,2239.4,1.342874]
[1750650598026,11.84149255,2239.7,2239.4,1.342874]
[1750650598235,0.41591109,2239.6,2239.4,1.342874]
[1750650598447,7.5433142,2239.5,2239.1,0.45746021]
[1750650598647,1.21350428,2239.6,2238.5,3.21]
[1750650598648,10.0,2239.1,2238.5,3.21]
[1750650598812,7.12742548,2238.9,2238.8,1.343204]
[1750650599017,2.33375517,2238.9,2238.6,3.21]
[1750650599218,0.41575517,2238.8,2238.6,4.613567]
[1750650599551,9.166,2238.7,2238.6,4.613567]
[1750650599723,7.248,2238.7,2238.6,5.1549637]
[1750650600453,10.0,2239.4,2238.8,0.7808]
[1750650600749,10.0,2239.2,2238.9,3.21]
[1750650600977,10.0,2239.2,2239.0,0.0602]
[1750650602961,7.12742548,2239.7,2239.0,0.0602]
[1750650603256,10.47564261,2239.5,2239.0,0.0602]
[1750650603457,0.83409298,2239.5,2239.0,0.0602]
[1750650603646,9.167,2239.4,2239.0,0.0602]
[1750650605046,0.059,2239.7,2239.1,3.2702]
[1750650605247,1.917,2239.3,2239.2,0.0602]
[1750650605952,0.059,2239.7,2239.2,0.0602]
[1750650606264,9.58057676,2239.6,2239.2,0.0602]
[1750650606428,9.166,2239.6,2239.2,0.0602]
[1750650606824,9.166,2239.6,2239.1,3.9617]
[1750650607024,9.166,2239.6,2239.1,4.35787]
[1750650607658,9.166,2239.6,2239.2,0.0602]
[1750650607854,9.166,2239.6,2239.1,4.35787]
[1750650608155,9.166,2239.6,2239.2,0.0602]
[1750650608368,17.62742548,2239.8,2239.1,4.35787]
[1750650608519,10.0,2239.6,2239.2,0.0602]
[1750650608719,10.0,2239.6,2239.2,0.441807]
[1750650608924,10.0,2239.6,2239.3,0.0602]
[1750650609158,10.0,2239.6,2239.3,3.2702]
[1750650609379,10.0,2239.6,2239.4,3.21]
[1750650609529,9.166,2239.5,2239.4,3.2702]
[1750650611360,10.5,2239.8,2239.5,0.0602]
[1750650611559,7.249,2239.7,2239.6,0.0602]
[1750650611776,2.417,2239.8,2239.5,4.0167]
[1750650611947,7.249,2239.7,2239.6,0.50800086]
[1750650612272,2.417,2239.8,2239.6,4.26800086]
[1750650612468,7.249,2239.7,2239.6,4.26590086]
[1750650617071,7.249,2239.7,2239.6,3.71590086]
[1750650619853,7.249,2239.7,2239.6,5.05850986]
[1750650621237,7.249,2239.7,2239.6,4.552609]
[1750650621450,7.249,2239.7,2239.6,3.21]
[1750650621649,7.3067,2239.7,2239.6,3.21]
[1750650621856,24.43412548,2239.7,2239.6,3.21]
[1750650622182,0.0577,2239.6,2239.0,3.2681]
[1750650622367,0.0577,2239.6,2239.3,1.342952]
[1750650622832,17.249,2239.7,2239.3,2.099852]
[1750650623270,17.249,2239.7,2239.3,2.157952]
[1750650623475,17.249,2239.7,2239.3,2.099852]
[1750650623650,17.3067,2239.7,2239.3,1.401052]
[1750650623973,11.13637,2239.6,2239.3,1.401052]
[1750650626672,10.0,2239.7,2239.4,0.0581]
[1750650626872,0.5,2239.8,2239.5,0.8246]
[1750650627073,10.5,2239.8,2239.6,3.2681]
[1750650627275,9.164,2239.7,2239.6,3.2681]
[1750650628184,0.5,2239.8,2239.6,3.21]
[1750650628481,0.5,2239.8,2239.7,0.46021477]
[1750650628681,7.747,2239.8,2239.7,0.46021477]
[1750650629478,0.5,2239.8,2239.7,0.46021477]
[1750650629675,7.747,2239.8,2239.7,0.46021477]
[1750650631289,7.747,2239.8,2239.7,0.0581]
[1750650631589,7.747,2239.8,2239.7,3.2681]
[1750650632150,7.747,2239.8,2239.7,4.610637]
[1750650634154,7.746,2239.8,2239.7,4.610637]
[1750650636576,7.746,2239.8,2239.7,5.980437]
[1750650638059,7.746,2239.8,2239.7,4.610637]
[1750650639089,0.5,2239.8,2239.7,5.7036807]
[1750650639273,7.245,2240.0,2239.9,0.6081]
[1750650640460,1.914,2240.2,2239.9,0.55]
[1750650640658,7.66125558,2240.1,2240.0,3.2681]
[1750650641494,7.6614149,2240.1,2240.0,3.2681]
[1750650642155,7.66139828,2240.1,2240.0,3.2681]
[1750650642501,7.66140211,2240.1,2240.0,3.2681]
[1750650642655,7.245,2240.1,2240.0,4.0464]
[1750650642859,7.245,2240.1,2240.0,4.51050392]
[1750650643193,1.914,2240.2,2240.1,0.0622]
[1750650643499,7.245,2240.2,2240.0,4.45240392]
[1750650643695,10.0,2240.6,2240.1,3.76]
[1750650643887,9.57519878,2240.5,2240.3,0.7783]
[1750650644197,9.159,2240.5,2240.3,0.7783]
[1750650644401,0.41619806,2240.4,2240.3,0.8405]
[1750650644894,9.159,2240.5,2240.3,0.8405]
[1750650645483,0.41622168,2240.4,2240.3,0.8405]
[1750650645685,7.66021687,2240.4,2240.3,0.8405]
[1750650645882,7.244,2240.4,2240.3,0.8405]
[1750650648107,7.244,2240.4,2240.1,4.5685]
[1750650648405,7.244,2240.4,2240.2,0.0622]
[1750650649282,7.244,2240.4,2240.3,3.21]
[1750650650005,7.244,2240.4,2240.3,4.552219]
[1750650657317,8.64067922,2240.4,2240.3,3.21]
[1750650657922,8.2247,2240.4,2240.3,3.21]
[1750650658106,8.64076906,2240.4,2240.3,3.21]
[1750650659220,8.6407947,2240.4,2240.3,3.21]
[1750650660222,8.5817947,2240.4,2240.3,3.21]
[1750650660525,7.6600947,2240.4,2240.3,3.21]
[1750650661513,7.6600947,2240.4,2240.3,3.2722]
[1750650661514,0.4160947,2240.4,2240.3,3.2722]
[1750650661716,7.242,2240.4,2240.3,3.2722]
[1750650662533,7.242,2240.4,2240.3,3.21]
[1750650662715,1.914,2240.5,2240.3,3.2722]
[1750650662917,1.914,2240.5,2240.4,0.0622]
[1750650663122,1.914,2240.5,2240.4,3.2722]
[1750650663440,9.155,2240.5,2240.4,3.2722]
[1750650664198,9.57118903,2240.5,2240.4,3.2722]
[1750650664720,9.57118903,2240.5,2240.4,3.21]
[1750650664927,9.57121614,2240.5,2240.4,3.21]
[1750650665439,9.57121039,2240.5,2240.4,3.21]
[1750650665646,9.63021039,2240.5,2240.4,3.21]
[1750650666109,9.63021039,2240.5,2240.2,1.342369]
[1750650666110,0.059,2240.4,2240.1,3.21]
[1750650666301,0.41621039,2240.3,2240.1,3.21]
[1750650666501,0.059,2240.1,2239.9,1.342573]
[1750650666698,1.91,2240.0,2239.7,3.21]
[1750650666924,7.241,2239.9,2239.7,4.552681]
[1750650670110,7.241,2239.9,2239.8,0.0622]
[1750650670627,10.0,2240.6,2239.8,0.5236881]
[1750650670943,9.62640504,2240.5,2239.8,4.0352]
[1750650671107,0.47540504,2240.4,2239.8,4.0352]
[1750650671437,0.47540504,2240.3,2239.8,4.0352]
[1750650671638,10.0,2240.1,2239.8,4.0352]
[1750650671840,0.41640504,2240.0,2239.9,3.21]
[1750650672438,0.41640504,2240.0,2239.9,3.268]
[1750650672744,1.91,2240.1,2240.0,0.058]
[1750650672941,10.733,2240.7,2240.0,3.21]
[1750650673127,10.0,2240.5,2240.2,0.058]
[1750650673312,0.41626839,2240.4,2240.2,0.058]
[1750650673515,7.65726839,2240.3,2240.2,0.058]
[1750650675129,7.65726839,2240.3,2240.1,3.21]
[1750650675334,0.41625571,2240.2,2240.1,3.21]
[1750650676216,0.83062557,2240.2,2240.1,3.21]
[1750650676543,0.4162413,2240.2,2240.1,3.21]
[1750650678113,9.5672413,2240.2,2240.1,3.21]
[1750650678949,9.5672413,2240.2,2240.0,0.058]
[1750650679135,9.151,2240.2,2240.0,0.058]
[1750650683333,0.416197,2240.1,2240.0,0.058]
[1750650683518,0.416197,2240.1,2240.0,0.3848]
[1750650684635,1.91,2240.3,2240.0,1.7176]
[1750650684843,7.24,2240.2,2240.1,3.268]
[1750650685036,7.24,2240.2,2240.1,3.76076]